[Event "*** SCC Grand Prix: Titled Tuesday Blitz"]
[Site "Chess.com"]
[Date "2020.07.21"]
[Round "9"]
[White "nrvisakh"]
[Black "stanyga"]
[Result "0-1"]
[WhiteElo "2823"]
[BlackElo "2627"]
[TimeControl "180+1"]
[EndTime "11:48:34 PDT"]
[Termination "stanyga won by resignation"]

1. c4 {[%clk 0:03:00.9]} 1... Nf6 {[%clk 0:02:59.4]} 2. g3 {[%clk 0:03:00.2]}
2... g6 {[%clk 0:02:57.7]} 3. Bg2 {[%clk 0:02:59.7]} 3... d5 {[%clk 0:02:57.5]}
4. cxd5 {[%clk 0:02:58.8]} 4... Nxd5 {[%clk 0:02:57.6]} 5. Nc3 {[%clk
0:02:56.6]} 5... Nb6 {[%clk 0:02:57.2]} 6. Nf3 {[%clk 0:02:55.7]} 6... Bg7
{[%clk 0:02:57.1]} 7. O-O {[%clk 0:02:55.5]} 7... Nc6 {[%clk 0:02:57.4]} 8. Rb1
{[%clk 0:02:49.3]} 8... O-O {[%clk 0:02:52.3]} 9. b4 {[%clk 0:02:49.1]} 9... Bf5
{[%clk 0:02:51.9]} 10. Rb3 {[%clk 0:02:35.6]} 10... Be6 {[%clk 0:02:44.6]} 11.
Rb2 {[%clk 0:02:33]} 11... Bxc3 {[%clk 0:02:30.3]} 12. dxc3 {[%clk 0:02:32.5]}
12... Qxd1 {[%clk 0:02:30.5]} 13. Rxd1 {[%clk 0:02:32.6]} 13... Na4 {[%clk
0:02:30.9]} 14. Rc2 {[%clk 0:02:21.4]} 14... Bf5 {[%clk 0:02:30]} 15. Rd3 {[%clk
0:02:19.1]} 15... Bxd3 {[%clk 0:02:26.5]} 16. exd3 {[%clk 0:02:20]} 16... Rfd8
{[%clk 0:02:11.9]} 17. d4 {[%clk 0:02:19.2]} 17... Nb6 {[%clk 0:02:11.4]} 18. b5
{[%clk 0:02:15.8]} 18... Na5 {[%clk 0:02:10.2]} 19. Ne5 {[%clk 0:02:14.6]} 19...
Rac8 {[%clk 0:02:06.5]} 20. h4 {[%clk 0:02:06.3]} 20... c5 {[%clk 0:02:01.4]}
21. bxc6 {[%clk 0:02:05.4]} 21... Nxc6 {[%clk 0:01:52.7]} 22. Nxc6 {[%clk
0:02:04.4]} 22... bxc6 {[%clk 0:01:52.9]} 23. Ba3 {[%clk 0:02:02]} 23... e6
{[%clk 0:01:50.5]} 24. Re2 {[%clk 0:01:57.7]} 24... Na4 {[%clk 0:01:46.7]} 25.
Re3 {[%clk 0:01:36.6]} 25... c5 {[%clk 0:01:46.6]} 26. dxc5 {[%clk 0:01:35.7]}
26... Nxc5 {[%clk 0:01:41.7]} 27. Kh2 {[%clk 0:01:35.4]} 27... Rd2 {[%clk
0:01:39.9]} 28. Rf3 {[%clk 0:01:04.3]} 28... Rxa2 {[%clk 0:01:33.1]} 29. Bc1
{[%clk 0:01:04.2]} 29... Ne4 {[%clk 0:01:26.2]} 30. Be3 {[%clk 0:01:04]} 30...
Rxc3 {[%clk 0:01:18.3]} 31. Rf4 {[%clk 0:01:03.9]} 31... f5 {[%clk 0:01:15.6]}
32. Bxe4 {[%clk 0:01:03.4]} 32... Rxe3 {[%clk 0:01:13.1]} 33. Bg2 {[%clk
0:01:03.2]} 33... Ree2 {[%clk 0:01:11.2]} 34. Kg1 {[%clk 0:01:03.2]} 34... a5
{[%clk 0:01:05.8]} 35. Bf1 {[%clk 0:00:57.8]} 35... Red2 {[%clk 0:01:01.6]} 36.
Bc4 {[%clk 0:00:57.7]} 36... Ra1+ {[%clk 0:01:00.6]} 37. Kg2 {[%clk 0:00:58.1]}
37... Kf7 {[%clk 0:01:00.3]} 38. Rf3 {[%clk 0:00:57.2]} 38... a4 {[%clk
0:00:58.6]} 39. Re3 {[%clk 0:00:57]} 39... Rd6 {[%clk 0:00:58]} 40. Re5 {[%clk
0:00:57.1]} 40... Kf6 {[%clk 0:00:53.5]} 41. Ra5 {[%clk 0:00:56.3]} 41... h5
{[%clk 0:00:52.6]} 42. Ra7 {[%clk 0:00:52.2]} 42... a3 {[%clk 0:00:50.2]} 43.
Bb5 {[%clk 0:00:50.7]} 43... Rdd1 {[%clk 0:00:43.3]} 44. Be8 {[%clk 0:00:42.7]}
44... a2 {[%clk 0:00:38.9]} 45. f4 {[%clk 0:00:39.1]} 45... Rd2+ {[%clk
0:00:37.2]} 46. Kf3 {[%clk 0:00:39.3]} 46... e5 {[%clk 0:00:34.1]} 47. fxe5+
{[%clk 0:00:33.5]} 47... Kxe5 {[%clk 0:00:33.9]} 48. Re7+ {[%clk 0:00:30.5]}
48... Kf6 {[%clk 0:00:31.6]} 0-1

[Event "*** SCC Grand Prix: Titled Tuesday Blitz"]
[Site "Chess.com"]
[Date "2020.07.21"]
[Round "9"]
[White "Zarinur"]
[Black "Chuchofrio1"]
[Result "0-1"]
[WhiteElo "2102"]
[BlackElo "2268"]
[TimeControl "180+1"]
[EndTime "11:48:36 PDT"]
[Termination "Chuchofrio1 won by resignation"]

1. e4 {[%clk 0:03:00.9]} 1... c5 {[%clk 0:02:59.7]} 2. Nf3 {[%clk 0:03:00.7]}
2... Nc6 {[%clk 0:02:58.6]} 3. Bb5 {[%clk 0:02:59.4]} 3... e6 {[%clk 0:02:57.8]}
4. Bxc6 {[%clk 0:02:55.5]} 4... bxc6 {[%clk 0:02:57.2]} 5. d3 {[%clk 0:02:54.1]}
5... Ne7 {[%clk 0:02:57.2]} 6. Be3 {[%clk 0:02:50.2]} 6... Ng6 {[%clk
0:02:55.4]} 7. h4 {[%clk 0:02:38.7]} 7... h5 {[%clk 0:02:52.8]} 8. Ng5 {[%clk
0:02:30.2]} 8... f6 {[%clk 0:02:46.2]} 9. Nh3 {[%clk 0:02:27.9]} 9... d5 {[%clk
0:02:43.7]} 10. Qe2 {[%clk 0:02:12.3]} 10... Bd6 {[%clk 0:02:40.1]} 11. f4
{[%clk 0:01:40]} 11... Nxh4 {[%clk 0:02:27.8]} 12. Ng1 {[%clk 0:01:35]} 12...
Ng6 {[%clk 0:01:57.8]} 13. Rxh5 {[%clk 0:01:32.9]} 13... Kf7 {[%clk 0:01:56.4]}
14. Nh3 {[%clk 0:01:12]} 14... Ba6 {[%clk 0:01:40.3]} 15. Qf2 {[%clk 0:01:01]}
15... Rxh5 {[%clk 0:01:38]} 16. e5 {[%clk 0:00:58.1]} 16... fxe5 {[%clk
0:01:31.5]} 17. fxe5+ {[%clk 0:00:57.8]} 17... Rf5 {[%clk 0:01:31.4]} 18. Ng5+
{[%clk 0:00:49.1]} 18... Kg8 {[%clk 0:01:19.1]} 19. Qg3 {[%clk 0:00:44.6]} 19...
Bxe5 {[%clk 0:01:15.8]} 20. Qh3 {[%clk 0:00:43.4]} 20... Rxg5 {[%clk 0:01:12.2]}
21. Qxe6+ {[%clk 0:00:30.7]} 21... Kf8 {[%clk 0:01:02.8]} 22. Bxc5+ {[%clk
0:00:13.4]} 22... Ne7 {[%clk 0:00:54.9]} 23. Na3 {[%clk 0:00:10.2]} 23... Bg3+
{[%clk 0:00:50.2]} 24. Kd2 {[%clk 0:00:09.1]} 24... Bf4+ {[%clk 0:00:44.7]} 25.
Kc3 {[%clk 0:00:06.7]} 25... d4+ {[%clk 0:00:38.9]} 26. Kb3 {[%clk 0:00:05]}
26... Rb8+ {[%clk 0:00:36.3]} 27. Ka4 {[%clk 0:00:02.7]} 27... Bb5+ {[%clk
0:00:33.9]} 28. Nxb5 {[%clk 0:00:01.8]} 28... cxb5+ {[%clk 0:00:33.4]} 29. Kb4
{[%clk 0:00:01.8]} 29... a5+ {[%clk 0:00:32]} 30. Kb3 {[%clk 0:00:02.2]} 30...
a4+ {[%clk 0:00:30.1]} 31. Kb4 {[%clk 0:00:02.1]} 31... Rxc5 {[%clk 0:00:27.6]}
32. Kxc5 {[%clk 0:00:01.5]} 32... Qc7+ {[%clk 0:00:23]} 33. Kxd4 {[%clk
0:00:01.5]} 33... Rd8+ {[%clk 0:00:19.9]} 34. Ke4 {[%clk 0:00:02.4]} 34... g5
{[%clk 0:00:15.9]} 35. Kf3 {[%clk 0:00:03.3]} 35... Qc6+ {[%clk 0:00:15.2]} 36.
Kg4 {[%clk 0:00:03.9]} 36... Qxe6+ {[%clk 0:00:14.9]} 0-1

[Event "*** SCC Grand Prix: Titled Tuesday Blitz"]
[Site "Chess.com"]
[Date "2020.07.21"]
[Round "9"]
[White "UCantHandleDenker"]
[Black "knightmare7724"]
[Result "1-0"]
[WhiteElo "2566"]
[BlackElo "2591"]
[TimeControl "180+1"]
[EndTime "11:48:38 PDT"]
[Termination "UCantHandleDenker won by resignation"]

1. Nf3 {[%clk 0:02:58.7]} 1... Nf6 {[%clk 0:03:00.2]} 2. g3 {[%clk 0:02:58]}
2... b6 {[%clk 0:03:00.1]} 3. Bg2 {[%clk 0:02:57.9]} 3... Bb7 {[%clk 0:03:01]}
4. O-O {[%clk 0:02:58.2]} 4... g6 {[%clk 0:03:01.5]} 5. c4 {[%clk 0:02:49.2]}
5... Bg7 {[%clk 0:03:01]} 6. Nc3 {[%clk 0:02:49.7]} 6... O-O {[%clk 0:03:01.3]}
7. d4 {[%clk 0:02:48.2]} 7... Ne4 {[%clk 0:03:01.4]} 8. Nxe4 {[%clk 0:02:27.8]}
8... Bxe4 {[%clk 0:03:02.3]} 9. Be3 {[%clk 0:02:25.6]} 9... d6 {[%clk
0:02:55.4]} 10. Qd2 {[%clk 0:02:24.7]} 10... Nd7 {[%clk 0:02:54.8]} 11. Bh6
{[%clk 0:02:23.2]} 11... Nf6 {[%clk 0:02:44.5]} 12. Rad1 {[%clk 0:02:14.5]}
12... c5 {[%clk 0:02:30.9]} 13. Bxg7 {[%clk 0:02:09.7]} 13... Kxg7 {[%clk
0:02:29]} 14. Qe3 {[%clk 0:02:08.1]} 14... Bxf3 {[%clk 0:02:18.5]} 15. Bxf3
{[%clk 0:02:06.8]} 15... cxd4 {[%clk 0:02:18.1]} 16. Qxd4 {[%clk 0:02:04.9]}
16... Rc8 {[%clk 0:02:17.3]} 17. b3 {[%clk 0:02:03.5]} 17... Qc7 {[%clk
0:02:13.4]} 18. Rd2 {[%clk 0:02:02.1]} 18... Rfd8 {[%clk 0:02:00.8]} 19. Rfd1
{[%clk 0:01:57.7]} 19... h5 {[%clk 0:01:52.2]} 20. h4 {[%clk 0:01:56.9]} 20...
Qc5 {[%clk 0:01:50.3]} 21. Qb2 {[%clk 0:01:54.1]} 21... b5 {[%clk 0:01:47.8]}
22. Rd5 {[%clk 0:01:51.1]} 22... Qc7 {[%clk 0:01:37.1]} 23. Rxb5 {[%clk
0:01:49.7]} 23... Rb8 {[%clk 0:01:28.4]} 24. a4 {[%clk 0:01:45.3]} 24... a6
{[%clk 0:01:25]} 25. Rxb8 {[%clk 0:01:42.4]} 25... Rxb8 {[%clk 0:01:25.9]} 26.
Qc3 {[%clk 0:01:36.3]} 26... a5 {[%clk 0:01:25.9]} 27. Rd5 {[%clk 0:01:32.4]}
27... e6 {[%clk 0:01:05.2]} 28. Rb5 {[%clk 0:01:13.4]} 28... Rxb5 {[%clk
0:00:49.5]} 29. axb5 {[%clk 0:01:14.3]} 29... e5 {[%clk 0:00:37.2]} 30. Bc6
{[%clk 0:01:00.6]} 30... d5 {[%clk 0:00:30.3]} 31. e3 {[%clk 0:00:46.7]} 31...
Ne4 {[%clk 0:00:20.1]} 32. Qc2 {[%clk 0:00:41.3]} 32... Nf6 {[%clk 0:00:18.8]}
33. Qd2 {[%clk 0:00:37.5]} 33... dxc4 {[%clk 0:00:13.1]} 34. bxc4 {[%clk
0:00:37.3]} 34... a4 {[%clk 0:00:13.7]} 35. Qb4 {[%clk 0:00:35.1]} 35... Qd8
{[%clk 0:00:13.9]} 36. Qxa4 {[%clk 0:00:31.2]} 36... Ng4 {[%clk 0:00:14.4]} 37.
Qc2 {[%clk 0:00:30.3]} 37... Qa5 {[%clk 0:00:11.6]} 38. Bf3 {[%clk 0:00:28.9]}
38... Qe1+ {[%clk 0:00:11.2]} 39. Kg2 {[%clk 0:00:29.2]} 39... Nh6 {[%clk
0:00:11.8]} 40. b6 {[%clk 0:00:27.9]} 40... Nf5 {[%clk 0:00:06]} 41. Qb2 {[%clk
0:00:23.9]} 41... f6 {[%clk 0:00:05]} 42. b7 {[%clk 0:00:23.5]} 42... g5 {[%clk
0:00:04.2]} 43. b8=Q {[%clk 0:00:21.6]} 43... g4 {[%clk 0:00:04.8]} 44. Q2b7+
{[%clk 0:00:20.9]} 1-0

[Event "*** SCC Grand Prix: Titled Tuesday Blitz"]
[Site "Chess.com"]
[Date "2020.07.21"]
[Round "9"]
[White "yuliagok"]
[Black "MisiekZielony"]
[Result "1-0"]
[WhiteElo "2114"]
[BlackElo "2230"]
[TimeControl "180+1"]
[EndTime "11:48:41 PDT"]
[Termination "yuliagok won on time"]

1. d4 {[%clk 0:03:00.9]} 1... d5 {[%clk 0:02:59]} 2. c4 {[%clk 0:03:00.4]} 2...
c6 {[%clk 0:02:58.9]} 3. cxd5 {[%clk 0:02:59.6]} 3... cxd5 {[%clk 0:02:58.9]} 4.
Nf3 {[%clk 0:02:59.4]} 4... Nf6 {[%clk 0:02:59.4]} 5. Bf4 {[%clk 0:02:58.6]}
5... Nc6 {[%clk 0:02:59.7]} 6. Nc3 {[%clk 0:02:56.5]} 6... e6 {[%clk 0:02:59.9]}
7. e3 {[%clk 0:02:55.6]} 7... Be7 {[%clk 0:02:51.8]} 8. Bd3 {[%clk 0:02:47.6]}
8... O-O {[%clk 0:02:51.4]} 9. Rc1 {[%clk 0:02:46.2]} 9... Nh5 {[%clk
0:02:50.6]} 10. Bg3 {[%clk 0:02:44.1]} 10... f5 {[%clk 0:02:50]} 11. O-O {[%clk
0:02:40.3]} 11... Nxg3 {[%clk 0:02:45.1]} 12. hxg3 {[%clk 0:02:37.9]} 12... Bd6
{[%clk 0:02:45.1]} 13. Nb5 {[%clk 0:02:35.5]} 13... Bb8 {[%clk 0:02:44.8]} 14.
a3 {[%clk 0:02:29.2]} 14... g5 {[%clk 0:02:34.5]} 15. b4 {[%clk 0:02:22.5]}
15... a5 {[%clk 0:02:31.6]} 16. bxa5 {[%clk 0:02:19.4]} 16... Rxa5 {[%clk
0:02:29.2]} 17. Qd2 {[%clk 0:02:16]} 17... g4 {[%clk 0:02:19.3]} 18. Nh4 {[%clk
0:02:14.1]} 18... Bd7 {[%clk 0:02:14.3]} 19. f4 {[%clk 0:01:56]} 19... gxf3
{[%clk 0:02:13.4]} 20. Rxf3 {[%clk 0:01:54]} 20... Ra8 {[%clk 0:02:08.1]} 21.
Rcf1 {[%clk 0:01:48.7]} 21... Qg5 {[%clk 0:01:39.6]} 22. Qf2 {[%clk 0:01:46.2]}
22... Kh8 {[%clk 0:01:32.8]} 23. e4 {[%clk 0:01:37.3]} 23... dxe4 {[%clk
0:01:30.3]} 24. Bxe4 {[%clk 0:01:36.4]} 24... Rg8 {[%clk 0:01:30.2]} 25. Bc2
{[%clk 0:01:32.2]} 25... Bxg3 {[%clk 0:01:27.1]} 26. Rxg3 {[%clk 0:01:29.4]}
26... Qxg3 {[%clk 0:01:26.9]} 27. Qxg3 {[%clk 0:01:28.4]} 27... Rxg3 {[%clk
0:01:26.6]} 28. d5 {[%clk 0:01:27.7]} 28... Ne7 {[%clk 0:01:15.9]} 29. Nc7
{[%clk 0:01:18.8]} 29... Rc8 {[%clk 0:01:10.8]} 30. d6 {[%clk 0:01:17.2]} 30...
Ng6 {[%clk 0:00:49.1]} 31. Nf3 {[%clk 0:01:15.3]} 31... Kg7 {[%clk 0:00:40.7]}
32. Kf2 {[%clk 0:01:10.2]} 32... Rg4 {[%clk 0:00:39.1]} 33. Rb1 {[%clk
0:01:07.5]} 33... Kf6 {[%clk 0:00:33.9]} 34. Rxb7 {[%clk 0:01:05.2]} 34... Bc6
{[%clk 0:00:32.7]} 35. Rb6 {[%clk 0:01:04.3]} 35... Bd7 {[%clk 0:00:24.1]} 36.
Bd3 {[%clk 0:01:01.7]} 36... Ra4 {[%clk 0:00:22.6]} 37. Bb5 {[%clk 0:00:56.2]}
37... Rd8 {[%clk 0:00:18.9]} 38. Bxa4 {[%clk 0:00:54.8]} 38... Bxa4 {[%clk
0:00:19.2]} 39. Ra6 {[%clk 0:00:53.4]} 39... Bb3 {[%clk 0:00:15.7]} 40. Nd4
{[%clk 0:00:52.8]} 40... Bc4 {[%clk 0:00:14.4]} 41. Rc6 {[%clk 0:00:51.9]} 41...
Bd3 {[%clk 0:00:13.5]} 42. Ndxe6 {[%clk 0:00:49.4]} 42... Ra8 {[%clk 0:00:08.2]}
43. d7 {[%clk 0:00:46.1]} 1-0

[Event "*** SCC Grand Prix: Titled Tuesday Blitz"]
[Site "Chess.com"]
[Date "2020.07.21"]
[Round "9"]
[White "tk22h"]
[Black "WPWPWP-2015"]
[Result "1-0"]
[WhiteElo "2327"]
[BlackElo "2419"]
[TimeControl "180+1"]
[EndTime "11:48:42 PDT"]
[Termination "tk22h won on time"]

1. c4 {[%clk 0:03:00.9]} 1... e5 {[%clk 0:02:54.3]} 2. Nc3 {[%clk 0:03:00.3]}
2... Nf6 {[%clk 0:02:54]} 3. Nf3 {[%clk 0:02:59.8]} 3... Nc6 {[%clk 0:02:52.6]}
4. g3 {[%clk 0:02:59.5]} 4... Bb4 {[%clk 0:02:52]} 5. Nd5 {[%clk 0:02:58.3]}
5... Bc5 {[%clk 0:02:51.4]} 6. Bg2 {[%clk 0:02:58.1]} 6... O-O {[%clk
0:02:50.6]} 7. O-O {[%clk 0:02:57.8]} 7... d6 {[%clk 0:02:49.3]} 8. d3 {[%clk
0:02:57.1]} 8... h6 {[%clk 0:02:47.3]} 9. Bd2 {[%clk 0:02:56]} 9... a5 {[%clk
0:02:46.7]} 10. Bc3 {[%clk 0:02:55.7]} 10... Re8 {[%clk 0:02:42.7]} 11. e3
{[%clk 0:02:51.5]} 11... Nxd5 {[%clk 0:02:37.7]} 12. cxd5 {[%clk 0:02:49]} 12...
Ne7 {[%clk 0:02:38.6]} 13. d4 {[%clk 0:02:49.1]} 13... exd4 {[%clk 0:02:32.2]}
14. Nxd4 {[%clk 0:02:48.8]} 14... Ng6 {[%clk 0:02:26.5]} 15. Qd2 {[%clk
0:02:42]} 15... Ne5 {[%clk 0:02:23.1]} 16. b3 {[%clk 0:02:39.5]} 16... Bb6
{[%clk 0:02:15.5]} 17. h3 {[%clk 0:02:35.1]} 17... Nd7 {[%clk 0:02:11.7]} 18.
Kh2 {[%clk 0:02:32.3]} 18... Nf6 {[%clk 0:02:09]} 19. Qd3 {[%clk 0:02:29.5]}
19... Qe7 {[%clk 0:02:07.4]} 20. Rac1 {[%clk 0:02:18.9]} 20... Ne4 {[%clk
0:02:04.9]} 21. Bxe4 {[%clk 0:02:17.7]} 21... Qxe4 {[%clk 0:02:03.8]} 22. Qxe4
{[%clk 0:02:17.7]} 22... Rxe4 {[%clk 0:02:04.5]} 23. Nb5 {[%clk 0:02:17.6]}
23... Re7 {[%clk 0:02:02.7]} 24. Bd4 {[%clk 0:02:17]} 24... Bxd4 {[%clk
0:01:41.7]} 25. Nxd4 {[%clk 0:02:15.4]} 25... a4 {[%clk 0:01:28.7]} 26. b4
{[%clk 0:02:15.1]} 26... b6 {[%clk 0:01:14.9]} 27. a3 {[%clk 0:02:13.2]} 27...
Bb7 {[%clk 0:01:12.8]} 28. Nb5 {[%clk 0:02:13.1]} 28... Ba6 {[%clk 0:01:06.1]}
29. Nxc7 {[%clk 0:01:45]} 29... Rxc7 {[%clk 0:01:03]} 30. Rxc7 {[%clk
0:01:44.6]} 30... Bxf1 {[%clk 0:01:03.5]} 31. Rd7 {[%clk 0:01:44.6]} 31... Bd3
{[%clk 0:00:56]} 32. Rxd6 {[%clk 0:01:43.3]} 32... Be4 {[%clk 0:00:55.7]} 33. g4
{[%clk 0:01:38.6]} 33... Rc8 {[%clk 0:00:42.4]} 34. Kg3 {[%clk 0:01:37.5]} 34...
b5 {[%clk 0:00:25.8]} 35. f3 {[%clk 0:01:34.8]} 35... Bd3 {[%clk 0:00:23.1]} 36.
Rc6 {[%clk 0:01:31.9]} 36... Rd8 {[%clk 0:00:18.5]} 37. e4 {[%clk 0:01:31.7]}
37... Kf8 {[%clk 0:00:16.9]} 38. Kf4 {[%clk 0:01:29.6]} 38... f6 {[%clk
0:00:16.9]} 39. Ke3 {[%clk 0:01:29.1]} 39... Bf1 {[%clk 0:00:16.1]} 40. h4
{[%clk 0:01:28.5]} 40... Ke7 {[%clk 0:00:14.5]} 41. f4 {[%clk 0:01:20.1]} 41...
Rd6 {[%clk 0:00:13.7]} 42. Rc5 {[%clk 0:01:17.7]} 42... Bc4 {[%clk 0:00:09.8]}
43. Kd4 {[%clk 0:01:11.9]} 43... Be2 {[%clk 0:00:05.6]} 44. g5 {[%clk
0:01:11.2]} 44... hxg5 {[%clk 0:00:03.7]} 45. hxg5 {[%clk 0:01:11.2]} 45... Rd7
{[%clk 0:00:03.4]} 46. gxf6+ {[%clk 0:01:09.1]} 46... gxf6 {[%clk 0:00:03.3]}
47. e5 {[%clk 0:01:08.1]} 47... Bc4 {[%clk 0:00:03.3]} 48. d6+ {[%clk
0:01:06.5]} 48... Ke6 {[%clk 0:00:03.1]} 49. Rc7 {[%clk 0:00:57.6]} 49... fxe5+
{[%clk 0:00:02.8]} 50. fxe5 {[%clk 0:00:57.2]} 50... Rd8 {[%clk 0:00:01.7]} 51.
Re7+ {[%clk 0:00:56]} 51... Kf5 {[%clk 0:00:02.1]} 52. Kc5 {[%clk 0:00:55.9]}
52... Rc8+ {[%clk 0:00:02]} 53. Kd4 {[%clk 0:00:55.5]} 53... Rd8 {[%clk
0:00:02.1]} 54. Kc5 {[%clk 0:00:55.5]} 54... Rh8 {[%clk 0:00:02.2]} 55. d7
{[%clk 0:00:52.9]} 55... Be6 {[%clk 0:00:01.7]} 56. Kd6 {[%clk 0:00:52.4]} 1-0

[Event "*** SCC Grand Prix: Titled Tuesday Blitz"]
[Site "Chess.com"]
[Date "2020.07.21"]
[Round "9"]
[White "m_ezat"]
[Black "MiroVlasenko"]
[Result "0-1"]
[WhiteElo "2585"]
[BlackElo "2743"]
[TimeControl "180+1"]
[EndTime "11:48:44 PDT"]
[Termination "MiroVlasenko won by checkmate"]

1. d4 {[%clk 0:03:00.9]} 1... Nc6 {[%clk 0:03:00.9]} 2. Nf3 {[%clk 0:02:58.3]}
2... d6 {[%clk 0:03:00.7]} 3. c4 {[%clk 0:02:58]} 3... Bg4 {[%clk 0:03:00.1]} 4.
Qd3 {[%clk 0:02:33.3]} 4... e5 {[%clk 0:02:55.9]} 5. d5 {[%clk 0:02:28]} 5...
Nb8 {[%clk 0:02:55.2]} 6. c5 {[%clk 0:02:27.4]} 6... Nd7 {[%clk 0:02:52.2]} 7.
cxd6 {[%clk 0:02:25.9]} 7... Bxd6 {[%clk 0:02:51.4]} 8. Nc3 {[%clk 0:02:24.6]}
8... Ngf6 {[%clk 0:02:48.1]} 9. Bg5 {[%clk 0:02:24.2]} 9... O-O {[%clk
0:02:41.3]} 10. Nd2 {[%clk 0:02:15.7]} 10... Nc5 {[%clk 0:02:29.5]} 11. Qc2
{[%clk 0:02:15.5]} 11... h6 {[%clk 0:02:20.2]} 12. Bh4 {[%clk 0:02:13.7]} 12...
Bh5 {[%clk 0:02:17.5]} 13. e4 {[%clk 0:01:54.4]} 13... c6 {[%clk 0:02:05.1]} 14.
dxc6 {[%clk 0:01:40.8]} 14... bxc6 {[%clk 0:02:04.8]} 15. Bc4 {[%clk 0:01:39.4]}
15... g5 {[%clk 0:01:47.6]} 16. Bg3 {[%clk 0:01:37.7]} 16... Bg6 {[%clk
0:01:47.7]} 17. f3 {[%clk 0:01:27.8]} 17... Qe7 {[%clk 0:01:45.5]} 18. O-O
{[%clk 0:01:17.2]} 18... Nh5 {[%clk 0:01:44.4]} 19. Bf2 {[%clk 0:01:16.4]} 19...
Nf4 {[%clk 0:01:43.7]} 20. Rad1 {[%clk 0:01:00.1]} 20... Kg7 {[%clk 0:01:40.6]}
21. Nb3 {[%clk 0:00:59.3]} 21... Nce6 {[%clk 0:01:39.7]} 22. Na4 {[%clk
0:00:50.2]} 22... Rad8 {[%clk 0:01:36.4]} 23. a3 {[%clk 0:00:38.2]} 23... h5
{[%clk 0:01:35.7]} 24. Kh1 {[%clk 0:00:36.7]} 24... g4 {[%clk 0:01:35.2]} 25.
Bxe6 {[%clk 0:00:30.5]} 25... Qxe6 {[%clk 0:01:26.8]} 26. Nac5 {[%clk
0:00:30.5]} 26... Qe7 {[%clk 0:01:19.7]} 27. Nd3 {[%clk 0:00:30.2]} 27... gxf3
{[%clk 0:01:14.2]} 28. gxf3 {[%clk 0:00:27.8]} 28... Ne6 {[%clk 0:01:08.1]} 29.
Rg1 {[%clk 0:00:22.2]} 29... Kh7 {[%clk 0:01:06.8]} 30. Qe2 {[%clk 0:00:21.7]}
30... f5 {[%clk 0:01:03]} 31. exf5 {[%clk 0:00:19.5]} 31... Rxf5 {[%clk
0:01:02.5]} 32. Rxg6 {[%clk 0:00:17.3]} 32... Kxg6 {[%clk 0:00:58]} 33. Qe4
{[%clk 0:00:17.5]} 33... Qf7 {[%clk 0:00:51.9]} 34. Rg1+ {[%clk 0:00:13.9]}
34... Kh7 {[%clk 0:00:51.2]} 35. Bh4 {[%clk 0:00:07.2]} 35... Rg8 {[%clk
0:00:48.5]} 36. Rxg8 {[%clk 0:00:06]} 36... Kxg8 {[%clk 0:00:48.4]} 37. Kg2
{[%clk 0:00:06.6]} 37... c5 {[%clk 0:00:46]} 38. Nd2 {[%clk 0:00:05.8]} 38...
Nd4 {[%clk 0:00:45.2]} 39. Bg3 {[%clk 0:00:04.3]} 39... Qg6 {[%clk 0:00:42.6]}
40. Nc4 {[%clk 0:00:03.5]} 40... Bc7 {[%clk 0:00:38.5]} 41. Ncxe5 {[%clk
0:00:03.7]} 41... Bxe5 {[%clk 0:00:37.6]} 42. Nxe5 {[%clk 0:00:03.8]} 42... Qf6
{[%clk 0:00:37.8]} 43. Qa8+ {[%clk 0:00:04.1]} 43... Kh7 {[%clk 0:00:37.4]} 44.
Qb7+ {[%clk 0:00:04.8]} 44... Kh6 {[%clk 0:00:36.1]} 45. Qxa7 {[%clk 0:00:05.3]}
45... Rxe5 {[%clk 0:00:35.4]} 46. Bxe5 {[%clk 0:00:02.4]} 46... Qxf3+ {[%clk
0:00:34.9]} 47. Kg1 {[%clk 0:00:01.8]} 47... Ne2# {[%clk 0:00:35.8]} 0-1

[Event "*** SCC Grand Prix: Titled Tuesday Blitz"]
[Site "Chess.com"]
[Date "2020.07.21"]
[Round "9"]
[White "diablanni"]
[Black "CroissantNeuf"]
[Result "1/2-1/2"]
[WhiteElo "2337"]
[BlackElo "2442"]
[TimeControl "180+1"]
[EndTime "11:48:44 PDT"]
[Termination "Game drawn by repetition"]

1. e4 {[%clk 0:02:59.8]} 1... c6 {[%clk 0:02:59.7]} 2. d4 {[%clk 0:02:58.2]}
2... d5 {[%clk 0:03:00.6]} 3. Nc3 {[%clk 0:02:57.8]} 3... dxe4 {[%clk
0:03:00.2]} 4. Nxe4 {[%clk 0:02:57.5]} 4... Nf6 {[%clk 0:03:01.1]} 5. Nxf6+
{[%clk 0:02:56.3]} 5... exf6 {[%clk 0:03:02]} 6. c3 {[%clk 0:02:55.6]} 6... Bd6
{[%clk 0:03:02.2]} 7. Bd3 {[%clk 0:02:54.9]} 7... O-O {[%clk 0:03:02.6]} 8. Qc2
{[%clk 0:02:53.8]} 8... Re8+ {[%clk 0:03:03.5]} 9. Ne2 {[%clk 0:02:53.2]} 9...
h5 {[%clk 0:03:04.1]} 10. Bd2 {[%clk 0:02:43.4]} 10... Nd7 {[%clk 0:02:58.1]}
11. O-O-O {[%clk 0:02:42.2]} 11... Nf8 {[%clk 0:02:57.8]} 12. f3 {[%clk
0:02:34.8]} 12... Be6 {[%clk 0:02:51.6]} 13. Kb1 {[%clk 0:02:26.8]} 13... b5
{[%clk 0:02:51]} 14. h4 {[%clk 0:02:16.8]} 14... a5 {[%clk 0:02:43.1]} 15. Nf4
{[%clk 0:01:54]} 15... Bxf4 {[%clk 0:02:41.3]} 16. Bxf4 {[%clk 0:01:53.9]} 16...
Qd5 {[%clk 0:02:37.4]} 17. a3 {[%clk 0:01:48.3]} 17... Qa2+ {[%clk 0:02:05.6]}
18. Kc1 {[%clk 0:01:48.1]} 18... Bb3 {[%clk 0:02:04]} 19. Qb1 {[%clk 0:01:48.3]}
19... Qxb1+ {[%clk 0:02:03.6]} 20. Bxb1 {[%clk 0:01:49.1]} 20... Bxd1 {[%clk
0:02:04.1]} 21. Rxd1 {[%clk 0:01:48.6]} 21... Re2 {[%clk 0:02:02]} 22. g3 {[%clk
0:01:48.2]} 22... Ne6 {[%clk 0:01:59.9]} 23. Bd2 {[%clk 0:01:44.1]} 23... Rd8
{[%clk 0:01:48.1]} 24. Be4 {[%clk 0:01:33.4]} 24... c5 {[%clk 0:01:45.7]} 25. d5
{[%clk 0:01:31.2]} 25... f5 {[%clk 0:01:30.6]} 26. Bd3 {[%clk 0:01:23]} 26...
Rg2 {[%clk 0:00:48]} 27. Bf1 {[%clk 0:01:19.2]} 27... Rxg3 {[%clk 0:00:40]} 28.
dxe6 {[%clk 0:01:18.6]} 28... fxe6 {[%clk 0:00:40.5]} 29. Bxb5 {[%clk
0:01:18.1]} 29... Rxf3 {[%clk 0:00:40.3]} 30. Bc4 {[%clk 0:01:14.4]} 30... Rd6
{[%clk 0:00:31.3]} 31. Re1 {[%clk 0:01:12.1]} 31... Kf7 {[%clk 0:00:29.4]} 32.
Bg5 {[%clk 0:01:07.9]} 32... Rf2 {[%clk 0:00:20.1]} 33. Re5 {[%clk 0:01:04.9]}
33... f4 {[%clk 0:00:16.5]} 34. Rxc5 {[%clk 0:00:55.3]} 34... f3 {[%clk
0:00:15.5]} 35. Rf5+ {[%clk 0:00:51.4]} 35... Kg6 {[%clk 0:00:12.5]} 36. Rf8
{[%clk 0:00:44.6]} 36... e5 {[%clk 0:00:08.9]} 37. Bf7+ {[%clk 0:00:38.9]} 37...
Kh7 {[%clk 0:00:06.4]} 38. Bg8+ {[%clk 0:00:36.8]} 38... Kg6 {[%clk 0:00:06.1]}
39. Be3 {[%clk 0:00:33.8]} 39... Rf1+ {[%clk 0:00:05.2]} 40. Kc2 {[%clk
0:00:33.8]} 40... e4 {[%clk 0:00:04.8]} 41. Bf7+ {[%clk 0:00:32.3]} 41... Kh7
{[%clk 0:00:04.2]} 42. Bg8+ {[%clk 0:00:32]} 42... Kg6 {[%clk 0:00:04.4]} 43.
Bf7+ {[%clk 0:00:29.9]} 43... Kh7 {[%clk 0:00:04.7]} 44. Bg8+ {[%clk 0:00:18.8]}
44... Kg6 {[%clk 0:00:04.4]} 1/2-1/2